[Event "SS Manhem Chess Week 2022: Goteborg Open"]
[Site "Schackcentrum, Vegagatan 20, Gothenburg, Sweden"]
[Date "2022.08.12"]
[Round "1.10"]
[White "Fransson, Lennart"]
[Black "Stedman, Theodor"]
[Result "1-0"]
[TimeControl "15 minutes + 5 seconds per move from move one (Round 1 - 4) / 90 minutes + 30 seconds per move from move one (Round 5 - 8)"]
[WhiteFideId "1706756"]
[BlackFideId "1756230"]
[WhiteElo "1958"]
[BlackElo "1474"]

1. e4 {[%clk 00:15:06]} {[%emt 00:00:02]} e5 {[%clk 00:15:09]} {[%emt
00:00:03]} 2. Nf3 {[%clk 00:15:08]} {[%emt 00:00:02]} Nc6 {[%clk 00:15:12]}
{[%emt 00:00:02]} 3. Bc4 {[%clk 00:15:11]} {[%emt 00:00:02]} d6 {[%clk
00:15:11]} {[%emt 00:00:07]} 4. h3 {[%clk 00:14:41]} {[%emt 00:00:34]} h6
{[%clk 00:15:09]} {[%emt 00:00:08]} 5. d4 {[%clk 00:14:42]} {[%emt 00:00:03]}
exd4 {[%clk 00:14:52]} {[%emt 00:00:23]} 6. Nxd4 {[%clk 00:14:43]} {[%emt
00:00:02]} Nf6 {[%clk 00:14:52]} {[%emt 00:00:06]} 7. Nc3 {[%clk 00:14:41]}
{[%emt 00:00:06]} Ne5 {[%clk 00:14:33]} {[%emt 00:00:26]} 8. Be2 {[%clk
00:14:33]} {[%emt 00:00:12]} Be7 {[%clk 00:14:25]} {[%emt 00:00:14]} 9. O-O
{[%clk 00:14:34]} {[%emt 00:00:03]} c5 {[%clk 00:14:24]} {[%emt 00:00:07]} 10.
Nf3 {[%clk 00:14:16]} {[%emt 00:00:22]} Nxf3+ {[%clk 00:14:22]} {[%emt
00:00:08]} 11. Bxf3 {[%clk 00:14:17]} {[%emt 00:00:04]} O-O {[%clk 00:14:25]}
{[%emt 00:00:03]} 12. Bf4 {[%clk 00:14:08]} {[%emt 00:00:12]} a6 {[%clk
00:14:20]} {[%emt 00:00:11]} 13. Qd2 {[%clk 00:13:52]} {[%emt 00:00:20]} Qb6
{[%clk 00:14:08]} {[%emt 00:00:17]} 14. Rad1 {[%clk 00:12:32]} {[%emt
00:01:24]} Be6 {[%clk 00:14:00]} {[%emt 00:00:14]} 15. b3 {[%clk 00:12:19]}
{[%emt 00:00:17]} Rac8 {[%clk 00:13:47]} {[%emt 00:00:19]} 16. Na4 {[%clk
00:11:20]} {[%emt 00:01:04]} Qb4 {[%clk 00:12:46]} {[%emt 00:01:06]} 17. c3
{[%clk 00:10:15]} {[%emt 00:01:09]} Qb5 {[%clk 00:11:18]} {[%emt 00:01:34]} 18.
Bxd6 {[%clk 00:09:18]} {[%emt 00:01:01]} Rfd8 {[%clk 00:10:18]} {[%emt
00:01:06]} 19. Qf4 {[%clk 00:09:01]} {[%emt 00:00:21]} Bxd6 {[%clk 00:09:58]}
{[%emt 00:00:26]} 20. Rxd6 {[%clk 00:09:02]} {[%emt 00:00:03]} Rxd6 {[%clk
00:09:58]} {[%emt 00:00:06]} 21. Qxd6 {[%clk 00:09:02]} {[%emt 00:00:04]} Qd7
{[%clk 00:09:36]} {[%emt 00:00:28]} 22. Qf4 {[%clk 00:08:49]} {[%emt 00:00:17]}
Qc7 {[%clk 00:09:18]} {[%emt 00:00:23]} 23. Qxc7 {[%clk 00:08:25]} {[%emt
00:00:29]} Rxc7 {[%clk 00:09:22]} {[%emt 00:00:02]} 24. Rd1 {[%clk 00:07:51]}
{[%emt 00:00:38]} c4 {[%clk 00:09:01]} {[%emt 00:00:27]} 25. b4 {[%clk
00:07:45]} {[%emt 00:00:10]} b5 {[%clk 00:08:57]} {[%emt 00:00:09]} 26. Nc5
{[%clk 00:07:35]} {[%emt 00:00:15]} Nd7 {[%clk 00:08:28]} {[%emt 00:00:35]} 27.
Nxe6 {[%clk 00:07:02]} {[%emt 00:00:37]} fxe6 {[%clk 00:08:32]} 28. Rd6 {[%clk
00:06:49]} {[%emt 00:00:19]} Ra7 {[%clk 00:07:34]} {[%emt 00:01:04]} 29. Rxe6
{[%emt 00:00:13]} a5 {[%clk 00:07:25]} {[%emt 00:00:10]} 30. bxa5 {[%clk
00:06:12]} {[%emt 00:00:38]} Rxa5 {[%clk 00:07:08]} {[%emt 00:00:22]} 31. Bh5
{[%clk 00:05:10]} {[%emt 00:01:06]} Rxa2 {[%clk 00:06:22]} {[%emt 00:00:52]} 32.
Re7 {[%clk 00:04:45]} {[%emt 00:00:29]} Nf6 {[%clk 00:05:15]} {[%emt 00:01:12]}
33. Bg6 {[%clk 00:04:45]} {[%emt 00:00:04]} Kf8 {[%clk 00:05:01]} {[%emt
00:00:20]} 34. Rf7+ {[%clk 00:04:42]} {[%emt 00:00:07]} Kg8 {[%clk 00:04:52]}
{[%emt 00:00:15]} 35. Rb7 {[%clk 00:04:17]} {[%emt 00:00:30]} Kf8 {[%clk
00:04:14]} {[%emt 00:00:43]} 36. Rf7+ {[%clk 00:03:43]} {[%emt 00:00:38]} Kg8
{[%clk 00:04:15]} {[%emt 00:00:04]} 37. Rb7 {[%clk 00:03:31]} {[%emt 00:00:17]}
Kf8 {[%clk 00:04:19]} {[%emt 00:00:02]} 38. e5 {[%clk 00:03:24]} {[%emt
00:00:12]} Nd5 {[%clk 00:04:03]} {[%emt 00:00:21]} 39. Rf7+ {[%clk 00:03:08]}
{[%emt 00:00:20]} Kg8 {[%clk 00:02:55]} {[%emt 00:01:15]} 40. Rd7 {[%clk
00:02:55]} {[%emt 00:00:18]} Ra1+ {[%clk 00:02:46]} {[%emt 00:00:14]} 41. Kh2
{[%clk 00:02:58]} {[%emt 00:00:02]} Ra8 {[%clk 00:02:49]} {[%emt 00:00:02]} 42.
Rxd5 {[%clk 00:03:00]} {[%emt 00:00:02]} Kf8 {[%clk 00:02:47]} {[%emt
00:00:07]} 43. Rd7 {[%clk 00:02:59]} {[%emt 00:00:06]} Rb8 {[%clk 00:02:40]}
{[%emt 00:00:13]} 44. e6 {[%clk 00:03:01]} {[%emt 00:00:03]} b4 {[%clk
00:02:34]} {[%emt 00:00:11]} 45. e7+ {[%clk 00:03:00]} {[%emt 00:00:06]} Kg8
{[%clk 00:02:38]} {[%emt 00:00:01]} 46. Rd8+ {[%clk 00:03:03]} {[%emt
00:00:02]} 1-0

[Event "SS Manhem Chess Week 2022: Goteborg Open"]
[Site "Schackcentrum, Vegagatan 20, Gothenburg, Sweden"]
[Date "2022.08.12"]
[Round "1.11"]
[White "Ghaderi, Jamal"]
[Black "Eriksson, Joel"]
[Result "0-1"]
[TimeControl "15 minutes + 5 seconds per move from move one (Round 1 - 4) / 90 minutes + 30 seconds per move from move one (Round 5 - 8)"]
[WhiteFideId "1744178"]
[BlackFideId "1729233"]
[WhiteElo "1411"]
[BlackElo "1949"]

1. d4 {[%clk 00:15:07]} {[%emt 00:00:02]} f5 {[%clk 00:15:06]} {[%emt
00:00:04]} 2. c4 {[%clk 00:15:10]} {[%emt 00:00:02]} Nf6 {[%clk 00:15:09]}
{[%emt 00:00:02]} 3. Nc3 {[%clk 00:15:13]} {[%emt 00:00:02]} e6 {[%clk
00:15:12]} {[%emt 00:00:02]} 4. Bf4 {[%clk 00:15:15]} {[%emt 00:00:03]} b6
{[%clk 00:15:04]} {[%emt 00:00:13]} 5. Nf3 {[%clk 00:15:09]} {[%emt 00:00:10]}
Bb4 {[%clk 00:14:59]} {[%emt 00:00:10]} 6. Qc2 {[%clk 00:14:38]} {[%emt
00:00:36]} Bb7 {[%clk 00:14:53]} {[%emt 00:00:11]} 7. Ne5 {[%clk 00:14:24]}
{[%emt 00:00:19]} Ne4 {[%clk 00:14:29]} {[%emt 00:00:29]} 8. a3 {[%clk
00:14:12]} {[%emt 00:00:17]} Bxc3+ {[%clk 00:14:31]} {[%emt 00:00:03]} 9. bxc3
{[%clk 00:14:14]} {[%emt 00:00:03]} O-O {[%clk 00:14:23]} {[%emt 00:00:13]} 10.
h3 {[%clk 00:13:55]} {[%emt 00:00:24]} d6 {[%clk 00:14:09]} {[%emt 00:00:19]}
11. Nf3 {[%clk 00:13:31]} {[%emt 00:00:30]} Nd7 {[%clk 00:13:43]} {[%emt
00:00:31]} 12. e3 {[%clk 00:13:18]} {[%emt 00:00:18]} Qe8 {[%clk 00:13:29]}
{[%emt 00:00:19]} 13. Ng5 {[%clk 00:12:50]} {[%emt 00:00:32]} e5 {[%clk
00:13:06]} {[%emt 00:00:29]} 14. dxe5 {[%clk 00:10:37]} {[%emt 00:02:18]} dxe5
{[%clk 00:13:06]} {[%emt 00:00:05]} 15. Nxh7 {[%clk 00:10:13]} {[%emt
00:00:28]} Kxh7 {[%clk 00:13:03]} {[%emt 00:00:09]} 16. Bh2 {[%clk 00:10:06]}
{[%emt 00:00:12]} Ndc5 {[%clk 00:11:58]} {[%emt 00:01:09]} 17. Be2 {[%clk
00:09:34]} {[%emt 00:00:38]} Rd8 {[%clk 00:11:43]} {[%emt 00:00:20]} 18. Rd1
{[%clk 00:08:45]} {[%emt 00:00:53]} Qe7 {[%clk 00:11:24]} {[%emt 00:00:24]} 19.
O-O {[%clk 00:08:26]} {[%emt 00:00:24]} Kh8 {[%clk 00:11:11]} {[%emt 00:00:18]}
20. Bf3 {[%clk 00:08:08]} {[%emt 00:00:23]} Nd6 {[%clk 00:10:43]} {[%emt
00:00:34]} 21. Bxb7 {[%clk 00:07:48]} {[%emt 00:00:24]} Ncxb7 {[%clk 00:10:45]}
{[%emt 00:00:03]} 22. Rd5 {[%clk 00:06:02]} {[%emt 00:01:52]} Nxc4 {[%clk
00:10:28]} {[%emt 00:00:22]} 23. Rxd8 {[%clk 00:05:19]} {[%emt 00:00:48]} Nxd8
{[%clk 00:10:20]} {[%emt 00:00:13]} 24. Qa4 {[%clk 00:04:59]} {[%emt 00:00:25]}
Na5 {[%clk 00:09:55]} {[%emt 00:00:30]} 25. Rd1 {[%clk 00:04:55]} {[%emt
00:00:08]} Ndc6 {[%clk 00:09:54]} {[%emt 00:00:06]} 26. e4 {[%clk 00:04:30]}
{[%emt 00:00:31]} f4 {[%clk 00:09:45]} {[%emt 00:00:15]} 27. f3 {[%clk
00:03:44]} {[%emt 00:00:52]} Rd8 {[%clk 00:09:42]} {[%emt 00:00:06]} 28. Kh1
{[%clk 00:03:15]} {[%emt 00:00:35]} Rxd1+ {[%clk 00:09:28]} {[%emt 00:00:19]}
29. Qxd1 {[%clk 00:03:17]} {[%emt 00:00:02]} Qd8 {[%clk 00:09:29]} {[%emt
00:00:04]} 30. Qb1 {[%clk 00:02:26]} {[%emt 00:00:57]} Qd2 {[%clk 00:09:17]}
{[%emt 00:00:16]} 31. c4 {[%clk 00:01:17]} {[%emt 00:01:15]} Nxc4 {[%clk
00:08:59]} {[%emt 00:00:23]} 32. Qb3 {[%clk 00:01:06]} {[%emt 00:00:16]} Ne3
{[%clk 00:08:49]} {[%emt 00:00:15]} 0-1

[Event "SS Manhem Chess Week 2022: Goteborg Open"]
[Site "Schackcentrum, Vegagatan 20, Gothenburg, Sweden"]
[Date "2022.08.12"]
[Round "1.12"]
[White "Ottgard, Andreas"]
[Black "Hammar, Arvid"]
[Result "1-0"]
[TimeControl "15 minutes + 5 seconds per move from move one (Round 1 - 4) / 90 minutes + 30 seconds per move from move one (Round 5 - 8)"]
[WhiteFideId "1730592"]
[BlackFideId "1735977"]
[WhiteElo "1883"]
[BlackElo "1384"]

1. c4 {[%clk 00:15:06]} {[%emt 00:00:04]} e5 {[%clk 00:15:06]} {[%emt
00:00:04]} 2. g3 {[%clk 00:15:07]} {[%emt 00:00:04]} Bc5 {[%clk 00:15:03]}
{[%emt 00:00:08]} 3. Bg2 {[%clk 00:14:51]} {[%emt 00:00:20]} Nf6 {[%clk
00:14:53]} {[%emt 00:00:16]} 4. Nc3 {[%clk 00:14:38]} {[%emt 00:00:18]} O-O
{[%clk 00:14:36]} {[%emt 00:00:23]} 5. e3 {[%clk 00:13:31]} {[%emt 00:01:12]}
c6 {[%clk 00:14:29]} {[%emt 00:00:12]} 6. Nge2 {[%clk 00:12:54]} {[%emt
00:00:42]} d5 {[%clk 00:14:06]} {[%emt 00:00:28]} 7. cxd5 {[%clk 00:10:52]}
{[%emt 00:02:08]} cxd5 {[%clk 00:13:46]} {[%emt 00:00:25]} 8. d4 {[%clk
00:10:37]} {[%emt 00:00:19]} exd4 {[%clk 00:13:29]} {[%emt 00:00:22]} 9. Nxd4
{[%clk 00:10:31]} {[%emt 00:00:11]} Nc6 {[%clk 00:12:20]} {[%emt 00:01:14]} 10.
Nb3 {[%clk 00:09:23]} {[%emt 00:01:13]} Bb4 {[%clk 00:11:47]} {[%emt 00:00:38]}
11. O-O {[%clk 00:09:19]} {[%emt 00:00:09]} Bxc3 {[%clk 00:11:09]} {[%emt
00:00:45]} 12. bxc3 {[%clk 00:09:19]} {[%emt 00:00:04]} Bg4 {[%clk 00:09:57]}
{[%emt 00:01:16]} 13. Qd3 {[%clk 00:08:33]} {[%emt 00:00:51]} Ne5 {[%clk
00:09:18]} {[%emt 00:00:44]} 14. Qb5 {[%clk 00:07:43]} {[%emt 00:00:55]} b6
{[%clk 00:08:37]} {[%emt 00:00:46]} 15. Bb2 {[%clk 00:05:47]} {[%emt 00:02:01]}
a6 {[%clk 00:07:25]} {[%emt 00:01:18]} 16. Qb4 {[%clk 00:05:15]} {[%emt
00:00:36]} Nd3 {[%clk 00:06:32]} {[%emt 00:01:00]} 17. Qa3 {[%clk 00:05:01]}
{[%emt 00:00:18]} Ne4 {[%clk 00:06:05]} {[%emt 00:00:31]} 18. f3 {[%clk
00:04:22]} {[%emt 00:00:44]} Bxf3 {[%clk 00:05:00]} {[%emt 00:01:10]} 19. Bxf3
{[%clk 00:04:13]} {[%emt 00:00:13]} Qg5 {[%clk 00:04:38]} {[%emt 00:00:27]} 20.
Rae1 {[%clk 00:02:49]} {[%emt 00:01:29]} Nxe1 {[%clk 00:03:38]} {[%emt
00:01:05]} 21. Rxe1 {[%clk 00:02:53]} {[%emt 00:00:02]} Nxg3 {[%clk 00:03:28]}
{[%emt 00:00:14]} 22. Bg2 {[%clk 00:02:05]} {[%emt 00:00:53]} Ne4 {[%clk
00:03:29]} {[%emt 00:00:05]} 23. c4 {[%clk 00:01:39]} {[%emt 00:00:31]} Qf5
{[%clk 00:03:10]} {[%emt 00:00:23]} 24. Rf1 {[%clk 00:01:32]} {[%emt 00:00:13]}
Qg5 {[%clk 00:03:08]} {[%emt 00:00:07]} 25. Nd4 {[%clk 00:01:30]} {[%emt
00:00:07]} Qxe3+ {[%clk 00:03:07]} {[%emt 00:00:06]} 26. Qxe3 {[%clk 00:01:32]}
{[%emt 00:00:02]} Rfe8 {[%clk 00:03:04]} {[%emt 00:00:10]} 27. cxd5 {[%clk
00:01:23]} {[%emt 00:00:13]} Nf6 {[%clk 00:02:57]} {[%emt 00:00:12]} 28. Qg3
{[%clk 00:01:25]} {[%emt 00:00:02]} Rad8 {[%clk 00:02:58]} {[%emt 00:00:05]} 29.
Nf5 {[%clk 00:01:28]} {[%emt 00:00:03]} Nh5 {[%clk 00:02:58]} {[%emt 00:00:05]}
30. Qg5 {[%clk 00:01:22]} {[%emt 00:00:10]} g6 {[%clk 00:02:59]} {[%emt
00:00:05]} 31. Nh6+ {[%clk 00:01:19]} {[%emt 00:00:08]} Kf8 {[%clk 00:03:02]}
{[%emt 00:00:02]} 32. Rxf7# {[%clk 00:01:19]} {[%emt 00:00:05]} 1-0

[Event "SS Manhem Chess Week 2022: Goteborg Open"]
[Site "Schackcentrum, Vegagatan 20, Gothenburg, Sweden"]
[Date "2022.08.12"]
[Round "1.13"]
[White "Ghaderi, Noan"]
[Black "Degerfeldt, Sven"]
[Result "0-1"]
[TimeControl "15 minutes + 5 seconds per move from move one (Round 1 - 4) / 90 minutes + 30 seconds per move from move one (Round 5 - 8)"]
[WhiteFideId "1747096"]
[BlackFideId "1717430"]
[WhiteElo "1367"]
[BlackElo "1842"]

1. e4 {[%clk 00:15:09]} c5 {[%clk 00:15:09]} {[%emt 02:04:31]} 2. Nf3 {[%clk
00:15:12]} {[%emt 00:00:01]} Nc6 {[%clk 00:15:12]} {[%emt 00:00:02]} 3. d4
{[%clk 00:15:16]} {[%emt 00:00:02]} cxd4 {[%clk 00:15:15]} {[%emt 00:00:02]} 4.
Nxd4 {[%clk 00:15:20]} Nf6 {[%clk 00:15:18]} {[%emt 00:00:01]} 5. Nc3 {[%clk
00:15:22]} {[%emt 00:00:03]} d6 {[%clk 00:15:22]} 6. f4 {[%clk 00:15:19]}
{[%emt 00:00:08]} e6 {[%clk 00:15:07]} {[%emt 00:00:19]} 7. Bd3 {[%clk
00:14:58]} {[%emt 00:00:27]} Nxd4 {[%clk 00:15:10]} {[%emt 00:00:02]} 8. e5
{[%clk 00:15:00]} {[%emt 00:00:04]} Nd7 {[%clk 00:14:39]} {[%emt 00:00:36]} 9.
exd6 {[%clk 00:14:46]} {[%emt 00:00:19]} Bxd6 {[%clk 00:14:35]} {[%emt
00:00:08]} 10. O-O {[%clk 00:14:41]} {[%emt 00:00:11]} a6 {[%clk 00:13:28]}
{[%emt 00:01:11]} 11. Re1 {[%clk 00:13:52]} {[%emt 00:00:54]} Nf6 {[%clk
00:13:01]} {[%emt 00:00:32]} 12. Kh1 {[%clk 00:13:01]} {[%emt 00:00:56]} O-O
{[%clk 00:12:59]} {[%emt 00:00:07]} 13. Bxh7+ {[%clk 00:13:02]} {[%emt
00:00:04]} Nxh7 {[%clk 00:12:52]} {[%emt 00:00:12]} 14. Qxd4 {[%clk 00:13:03]}
{[%emt 00:00:03]} Nf6 {[%clk 00:12:46]} {[%emt 00:00:10]} 15. Qf2 {[%clk
00:11:52]} {[%emt 00:01:16]} b5 {[%clk 00:12:20]} {[%emt 00:00:31]} 16. Be3
{[%clk 00:11:32]} {[%emt 00:00:25]} Ng4 {[%clk 00:12:05]} {[%emt 00:00:20]} 17.
Qf3 {[%clk 00:11:16]} {[%emt 00:00:21]} Nxe3 {[%clk 00:12:04]} {[%emt
00:00:06]} 18. Qxe3 {[%clk 00:10:55]} {[%emt 00:00:27]} Qc7 {[%clk 00:11:45]}
{[%emt 00:00:24]} 19. Rf1 {[%clk 00:10:14]} {[%emt 00:00:45]} f5 {[%clk
00:11:12]} {[%emt 00:00:38]} 20. Rad1 {[%clk 00:09:49]} {[%emt 00:00:30]} Bc5
{[%clk 00:10:50]} {[%emt 00:00:27]} 21. Qe2 {[%clk 00:09:11]} {[%emt 00:00:44]}
Rf6 {[%clk 00:10:41]} {[%emt 00:00:14]} 22. Rd3 {[%clk 00:08:12]} {[%emt
00:01:04]} Bb7 {[%clk 00:09:32]} {[%emt 00:01:14]} 23. Rg3 {[%clk 00:06:56]}
{[%emt 00:01:21]} Qf7 {[%clk 00:08:03]} {[%emt 00:01:33]} 24. Qe5 {[%clk
00:04:10]} {[%emt 00:02:51]} Bb6 {[%clk 00:07:55]} {[%emt 00:00:14]} 25. Ne2
{[%clk 00:02:32]} {[%emt 00:01:43]} Rd8 {[%clk 00:06:50]} {[%emt 00:01:09]} 26.
c3 {[%clk 00:01:26]} {[%emt 00:01:12]} Rg6 {[%clk 00:06:34]} {[%emt 00:00:20]}
27. Rxg6 {[%clk 00:00:50]} {[%emt 00:00:41]} Qxg6 {[%clk 00:06:35]} {[%emt
00:00:04]} 28. Ng3 {[%clk 00:00:50]} {[%emt 00:00:05]} Qf7 {[%clk 00:05:51]}
{[%emt 00:00:49]} 29. Qe2 {[%clk 00:00:33]} {[%emt 00:00:22]} Bd5 {[%clk
00:05:33]} {[%emt 00:00:23]} 30. Rd1 {[%clk 00:00:20]} {[%emt 00:00:18]} Bc7
{[%clk 00:04:47]} {[%emt 00:00:51]} 0-1

[Event "SS Manhem Chess Week 2022: Goteborg Open"]
[Site "Schackcentrum, Vegagatan 20, Gothenburg, Sweden"]
[Date "2022.08.12"]
[Round "1.14"]
[White "Mohammed, Safian Haj"]
[Black "Torres, Lucas"]
[Result "1-0"]
[TimeControl "15 minutes + 5 seconds per move from move one (Round 1 - 4) / 90 minutes + 30 seconds per move from move one (Round 5 - 8)"]
[WhiteFideId "1729276"]
[BlackFideId "1769464"]
[WhiteElo "1794"]
[BlackElo "1331"]

1. e4 {[%clk 00:15:07]} {[%emt 00:00:02]} e5 {[%clk 00:15:07]} {[%emt
00:00:03]} 2. Nf3 {[%clk 00:15:04]} {[%emt 00:00:08]} Nc6 {[%clk 00:15:09]}
{[%emt 00:00:04]} 3. Bb5 {[%clk 00:14:48]} {[%emt 00:00:21]} a6 {[%clk
00:15:09]} {[%emt 00:00:04]} 4. Ba4 {[%clk 00:14:52]} {[%emt 00:00:01]} Nf6
{[%clk 00:15:11]} {[%emt 00:00:04]} 5. O-O {[%clk 00:14:55]} {[%emt 00:00:02]}
b5 {[%clk 00:15:13]} {[%emt 00:00:02]} 6. Bb3 {[%clk 00:14:59]} Bc5 {[%clk
00:15:06]} {[%emt 00:00:13]} 7. Re1 {[%clk 00:14:34]} {[%emt 00:00:30]} O-O
{[%clk 00:14:39]} {[%emt 00:00:32]} 8. c3 {[%clk 00:14:38]} {[%emt 00:00:02]}
d6 {[%clk 00:13:34]} {[%emt 00:01:10]} 9. d4 {[%clk 00:14:41]} {[%emt
00:00:02]} exd4 {[%clk 00:13:38]} {[%emt 00:00:02]} 10. cxd4 {[%clk 00:14:45]}
Bb6 {[%clk 00:13:38]} {[%emt 00:00:03]} 11. h3 {[%clk 00:14:40]} {[%emt
00:00:11]} h6 {[%clk 00:13:35]} {[%emt 00:00:08]} 12. a4 {[%clk 00:14:33]}
{[%emt 00:00:13]} Rb8 {[%clk 00:13:10]} {[%emt 00:00:30]} 13. axb5 {[%clk
00:14:35]} {[%emt 00:00:03]} axb5 {[%clk 00:13:14]} {[%emt 00:00:01]} 14. Nc3
{[%clk 00:14:10]} {[%emt 00:00:30]} b4 {[%clk 00:10:55]} {[%emt 00:02:24]} 15.
Na4 {[%clk 00:14:03]} {[%emt 00:00:12]} Ba7 {[%clk 00:09:38]} {[%emt 00:01:23]}
16. Bc2 {[%clk 00:13:55]} {[%emt 00:00:13]} Bd7 {[%clk 00:08:30]} {[%emt
00:01:14]} 17. b3 {[%clk 00:13:51]} {[%emt 00:00:08]} Re8 {[%clk 00:08:15]}
{[%emt 00:00:20]} 18. Nb2 {[%clk 00:13:52]} {[%emt 00:00:03]} Bb6 {[%clk
00:08:02]} {[%emt 00:00:18]} 19. Nc4 {[%clk 00:13:52]} {[%emt 00:00:05]} d5
{[%clk 00:05:14]} {[%emt 00:02:54]} 20. Nxb6 {[%clk 00:13:43]} {[%emt
00:00:13]} Rxb6 {[%clk 00:05:18]} {[%emt 00:00:02]} 21. e5 {[%clk 00:13:41]}
{[%emt 00:00:07]} Nh7 {[%clk 00:04:40]} {[%emt 00:00:39]} 22. Qd3 {[%clk
00:13:28]} {[%emt 00:00:23]} Nf8 {[%clk 00:04:42]} {[%emt 00:00:03]} 23. Be3
{[%clk 00:12:19]} {[%emt 00:01:13]} Rb8 {[%clk 00:04:11]} {[%emt 00:00:35]} 24.
Nd2 {[%clk 00:11:28]} {[%emt 00:00:58]} Qe7 {[%clk 00:03:49]} {[%emt 00:00:26]}
25. f4 {[%clk 00:11:18]} {[%emt 00:00:15]} f5 {[%clk 00:02:55]} {[%emt
00:00:59]} 26. exf6 {[%clk 00:09:07]} {[%emt 00:02:15]} Qxf6 {[%clk 00:02:47]}
{[%emt 00:00:12]} 27. Nf3 {[%clk 00:09:03]} {[%emt 00:00:10]} Ra8 {[%clk
00:02:13]} {[%emt 00:00:39]} 28. Ne5 {[%clk 00:08:45]} {[%emt 00:00:23]} Nxe5
{[%clk 00:02:01]} {[%emt 00:00:18]} 29. fxe5 {[%clk 00:08:45]} {[%emt
00:00:04]} Qe7 {[%clk 00:01:38]} {[%emt 00:00:28]} 30. Rf1 {[%clk 00:07:46]}
{[%emt 00:01:03]} Reb8 {[%clk 00:01:01]} {[%emt 00:00:43]} 31. Bd2 {[%clk
00:05:25]} {[%emt 00:02:26]} Bb5 {[%clk 00:00:12]} {[%emt 00:00:54]} 32. Qf3
{[%clk 00:05:18]} {[%emt 00:00:11]} Bxf1 {[%clk 00:00:14]} {[%emt 00:00:04]} 33.
Qxd5+ {[%clk 00:05:15]} {[%emt 00:00:07]} Kh8 {[%clk 00:00:16]} {[%emt
00:00:04]} 34. Rxa8 {[%clk 00:05:15]} {[%emt 00:00:05]} Rxa8 {[%clk 00:00:17]}
{[%emt 00:00:05]} 35. Qxa8 {[%clk 00:05:17]} {[%emt 00:00:02]} Bb5 {[%clk
00:00:19]} {[%emt 00:00:03]} 36. Qe4 {[%clk 00:05:08]} {[%emt 00:00:14]} Qe6
{[%clk 00:00:15]} {[%emt 00:00:09]} 37. Qf3 {[%clk 00:04:48]} {[%emt 00:00:25]}
Bc6 {[%clk 00:00:17]} {[%emt 00:00:03]} 38. Qxf8+ {[%clk 00:04:44]} {[%emt
00:00:08]} Qg8 {[%clk 00:00:19]} {[%emt 00:00:03]} 39. Qxg8+ {[%clk 00:04:45]}
{[%emt 00:00:04]} Kxg8 {[%clk 00:00:23]} {[%emt 00:00:01]} 40. Bxb4 {[%clk
00:04:45]} {[%emt 00:00:05]} Kf7 {[%clk 00:00:21]} {[%emt 00:00:07]} 41. Kf2
{[%clk 00:04:46]} {[%emt 00:00:03]} Ke6 {[%clk 00:00:20]} {[%emt 00:00:04]} 42.
g4 {[%clk 00:04:47]} {[%emt 00:00:05]} g6 {[%clk 00:00:07]} {[%emt 00:00:19]}
43. Bxg6 {[%clk 00:04:47]} {[%emt 00:00:04]} Bd5 {[%clk 00:00:09]} {[%emt
00:00:03]} 44. Bc2 {[%clk 00:04:50]} {[%emt 00:00:03]} c6 {[%clk 00:00:08]}
{[%emt 00:00:06]} 45. Ke3 {[%clk 00:04:49]} {[%emt 00:00:05]} Kf7 {[%clk
00:00:10]} {[%emt 00:00:03]} 46. Be4 {[%clk 00:04:50]} {[%emt 00:00:04]} Ke6
{[%clk 00:00:12]} {[%emt 00:00:04]} 47. Bxd5+ {[%clk 00:04:53]} {[%emt
00:00:02]} cxd5 {[%clk 00:00:16]} {[%emt 00:00:01]} 48. Bf8 {[%clk 00:04:53]}
{[%emt 00:00:05]} 1-0

[Event "SS Manhem Chess Week 2022: Goteborg Open"]
[Site "Schackcentrum, Vegagatan 20, Gothenburg, Sweden"]
[Date "2022.08.12"]
[Round "1.15"]
[White "Persson, Michael"]
[Black "Westlund, Tim"]
[Result "0-1"]
[TimeControl "15 minutes + 5 seconds per move from move one (Round 1 - 4) / 90 minutes + 30 seconds per move from move one (Round 5 - 8)"]
[WhiteFideId "1764179"]
[BlackFideId "1754718"]
[WhiteElo "1267"]
[BlackElo "1760"]

1. d4 {[%clk 00:15:08]} {[%emt 00:00:02]} Nf6 {[%clk 00:15:08]} {[%emt
00:00:02]} 2. c4 {[%clk 00:15:12]} {[%emt 00:00:02]} e6 {[%clk 00:15:11]}
{[%emt 00:00:01]} 3. a3 {[%clk 00:15:15]} {[%emt 00:00:02]} d5 {[%clk
00:15:08]} {[%emt 00:00:06]} 4. e3 {[%clk 00:15:19]} {[%emt 00:00:03]} Bd6
{[%clk 00:14:53]} {[%emt 00:00:20]} 5. Nc3 {[%clk 00:15:20]} {[%emt 00:00:04]}
O-O {[%clk 00:14:48]} {[%emt 00:00:09]} 6. Nf3 {[%clk 00:15:24]} {[%emt
00:00:02]} Nbd7 {[%clk 00:14:36]} {[%emt 00:00:17]} 7. Be2 {[%clk 00:15:13]}
{[%emt 00:00:16]} c6 {[%clk 00:14:26]} {[%emt 00:00:15]} 8. O-O {[%clk
00:15:11]} {[%emt 00:00:07]} Ne4 {[%clk 00:13:30]} {[%emt 00:01:01]} 9. cxd5
{[%clk 00:14:30]} {[%emt 00:00:46]} exd5 {[%clk 00:13:22]} {[%emt 00:00:13]} 10.
Bd3 {[%clk 00:13:59]} {[%emt 00:00:36]} Re8 {[%clk 00:12:17]} {[%emt 00:01:09]}
11. Re1 {[%clk 00:13:52]} {[%emt 00:00:12]} Ndf6 {[%clk 00:11:23]} {[%emt
00:01:00]} 12. Nd2 {[%clk 00:10:30]} {[%emt 00:03:27]} Bxh2+ {[%clk 00:07:56]}
{[%emt 00:03:32]} 13. Kf1 {[%clk 00:10:33]} {[%emt 00:00:03]} Nxf2 {[%clk
00:04:48]} {[%emt 00:03:13]} 14. Kxf2 {[%clk 00:08:10]} {[%emt 00:02:28]} Ng4+
{[%clk 00:04:51]} {[%emt 00:00:02]} 15. Ke2 {[%clk 00:08:13]} {[%emt 00:00:02]}
Rxe3+ {[%clk 00:04:28]} {[%emt 00:00:27]} 16. Kf2 {[%clk 00:08:03]} {[%emt
00:00:16]} Qh4+ {[%clk 00:04:10]} {[%emt 00:00:23]} 17. g3 {[%clk 00:07:12]}
{[%emt 00:00:56]} Qxg3+ {[%clk 00:04:12]} {[%emt 00:00:03]} 18. Kf1 {[%clk
00:07:16]} {[%emt 00:00:02]} Qg1# {[%clk 00:04:10]} {[%emt 00:00:05]} 0-1